bitfinex/quotes_SOLUSD_20250421
["timestamp","ask_amount","ask_price","bid_price","bid_amount"]
[1745231521708,18.64964886,139.31,139.27,26.0]
[1745231521878,80.8,139.32,139.27,32.5729]
[1745231522286,5.26691505,139.31,139.27,32.5729]
[1745231523095,80.8,139.32,139.27,32.5729]
[1745231523418,0.14216157,139.31,139.27,38.31675898]
[1745231524907,80.8,139.32,139.27,38.31675898]
[1745231526012,0.14216157,139.31,139.27,32.5729]
[1745231526596,0.14216157,139.31,139.27,38.31707782]
[1745231527201,87.9778446,139.32,139.27,32.5729]
[1745231527402,0.14216157,139.31,139.27,32.5729]
[1745231528228,7.32040777,139.31,139.27,32.5729]
[1745231528911,0.14216157,139.29,139.23,12.04131169]
[1745231529221,0.14216157,139.29,139.24,26.0]
[1745231529597,0.14216157,139.27,139.24,26.0]
[1745231530721,5.28087492,139.26,139.25,26.0]
[1745231534227,5.28087492,139.26,139.23,38.0414651]
[1745231534600,5.28087492,139.26,139.25,26.0]
[1745231538327,5.28087492,139.28,139.25,26.0]
[1745231539429,12.46069155,139.28,139.25,26.0]
[1745231540316,5.28087492,139.27,139.25,26.0]
[1745231542309,0.14216157,139.26,139.23,26.0]
[1745231542513,0.14216157,139.26,139.25,26.0]
[1745231542827,5.42303649,139.26,139.25,26.0]
[1745231543624,5.42303649,139.26,139.22,6.75962271]
[1745231543932,5.28087492,139.25,139.24,26.0]
[1745231546128,5.28087492,139.25,139.22,27.0133708]
[1745231546705,5.28087492,139.25,139.23,26.0]
[1745231551333,12.46234732,139.25,139.23,26.0]
[1745231551928,5.28087492,139.24,139.23,26.0]
[1745231552936,5.28087492,139.24,139.22,1.0133708]
[1745231553233,0.14216157,139.23,139.22,1.0133708]
[1745231553416,5.42303649,139.23,139.22,1.0133708]
[1745231554335,5.28087492,139.23,139.22,27.0133708]
[1745231555324,18.79181043,139.24,139.22,1.0133708]
[1745231555733,25.97384428,139.24,139.22,27.0133708]
[1745231556028,5.42303649,139.23,139.22,27.0133708]
[1745231557036,12.46323504,139.23,139.22,1.0133708]
[1745231557209,12.60539661,139.23,139.22,1.0133708]
[1745231557534,5.42303649,139.23,139.22,1.0133708]
[1745231557838,5.28087492,139.23,139.22,6.75967161]
[1745231558334,5.28087492,139.26,139.22,6.75967161]
[1745231559033,5.28087492,139.25,139.22,6.75967161]
[1745231559920,5.28087492,139.26,139.22,6.75967161]
[1745231561010,5.28087492,139.25,139.22,6.75967161]
[1745231561626,5.28087492,139.26,139.22,6.75967161]
[1745231562541,5.28087492,139.25,139.22,6.75967161]
[1745231562834,0.14216157,139.24,139.22,1.0133708]
[1745231563044,0.14216157,139.24,139.23,26.0]
[1745231563423,5.42303649,139.24,139.23,26.0]
[1745231564017,5.42303649,139.24,139.22,1.0133708]
[1745231564442,5.28087492,139.23,139.22,1.0133708]
[1745231564953,5.28087492,139.23,139.22,6.75967161]
[1745231565327,5.28087492,139.26,139.22,6.75967161]
[1745231566233,5.28087492,139.25,139.22,6.75967161]
[1745231567125,5.28087492,139.26,139.22,6.75967161]
[1745231568034,5.28087492,139.25,139.22,6.75967161]
[1745231568729,5.28087492,139.24,139.22,6.75967161]
[1745231569949,5.28087492,139.26,139.22,6.75967161]
[1745231570839,5.28087492,139.26,139.25,26.0]
[1745231571023,5.28087492,139.29,139.25,26.0]
[1745231571952,45.55770973,139.35,139.26,26.0]
[1745231571953,5.28087492,139.28,139.26,26.0]
[1745231572328,1e-08,139.28,139.27,7.6311]
[1745231572834,1e-08,139.28,139.27,13.37533781]
[1745231573030,0.063,139.34,139.29,26.0]
[1745231574141,0.063,139.34,139.29,31.74341302]
[1745231580936,0.063,139.38,139.3,1.6372]
[1745231581146,0.063,139.38,139.34,26.0]
[1745231582260,0.063,139.38,139.34,31.74116115]
[1745231582833,0.063,139.38,139.34,37.45733626]
[1745231584856,0.063,139.38,139.34,41.07979254]
[1745231585436,0.063,139.38,139.34,31.74116115]
[1745231585863,0.063,139.38,139.36,26.0]
[1745231586762,0.063,139.38,139.33,16.78]
[1745231586966,0.14216157,139.37,139.34,26.0]
[1745231587350,18.71264886,139.38,139.35,26.0]
[1745231587541,0.14216157,139.37,139.35,26.0]
[1745231587863,0.063,139.38,139.35,26.0]
[1745231589143,18.85481043,139.38,139.35,26.0]
[1745231589343,0.20516157,139.38,139.35,26.0]
[1745231589544,0.063,139.38,139.35,26.0]
[1745231590882,18.85481043,139.38,139.34,26.0]
[1745231591163,7.37999471,139.38,139.34,26.0]
[1745231591867,26.02964357,139.38,139.34,26.0]
[1745231592060,18.64964886,139.37,139.29,80.7]
[1745231592365,18.64964886,139.37,139.28,26.03]
[1745231592557,18.64964886,139.37,139.28,0.03]
[1745231592951,18.64964886,139.37,139.28,26.03]
[1745231593564,0.14216157,139.35,139.29,5.74330144]
[1745231595963,7.31873727,139.35,139.29,5.74330144]
[1745231596163,7.31873727,139.35,139.28,31.76464774]
[1745231596164,0.14216157,139.33,139.28,26.03]
[1745231597160,18.64964886,139.34,139.28,26.03]
[1745231597363,0.14216157,139.33,139.28,26.03]
[1745231597567,0.14216157,139.33,139.28,31.77381181]
[1745231599751,17.93806584,139.37,139.28,31.77381181]
[1745231599954,0.14216157,139.36,139.28,31.77381181]
[1745231601676,0.14216157,139.34,139.28,31.77381181]
[1745231602072,7.31886999,139.34,139.28,31.77381181]
[1745231603383,0.14216157,139.32,139.28,0.03]
[1745231604479,0.14216157,139.32,139.28,26.03]
[1745231604776,0.14216157,139.32,139.28,0.03]
[1745231605366,0.14216157,139.3,139.28,0.03]
[1745231607988,7.32092873,139.3,139.28,0.03]
[1745231608486,7.17831054,139.31,139.28,0.03]
[1745231608695,18.79181043,139.34,139.28,0.03]
[1745231608861,18.64964886,139.34,139.28,0.03]
[1745231609062,0.14216157,139.33,139.28,0.03]
[1745231609667,7.31970048,139.33,139.28,0.03]
[1745231610884,1.603,139.35,139.28,0.03]
[1745231612774,7.31973991,139.33,139.28,0.03]
[1745231613664,7.17676931,139.34,139.28,0.03]
[1745231613870,18.64964886,139.36,139.28,1.5954]
[1745231614097,18.64964886,139.36,139.3,26.0]
[1745231614390,0.14216157,139.35,139.3,26.0]
[1745231614783,7.31852041,139.35,139.3,26.0]
[1745231619389,18.64964886,139.34,139.3,26.0]
[1745231619697,7.31936676,139.33,139.28,1.5954]
[1745231619908,7.31936676,139.33,139.3,26.0]
[1745231621598,7.17566016,139.36,139.3,26.0]
[1745231621906,25.82530902,139.36,139.3,26.0]
[1745231622103,7.17566016,139.36,139.3,31.74295989]
[1745231623104,0.14216157,139.35,139.3,26.0]
[1745231623810,0.14216157,139.35,139.3,31.74291127]
[1745231624905,7.31876844,139.35,139.3,31.74291127]
[1745231627588,7.31876844,139.35,139.29,5.743225]
[1745231632013,7.31876844,139.35,139.31,26.0]
[1745231632194,7.31876844,139.35,139.28,7.33902084]
[1745231632386,7.31876844,139.35,139.29,26.0]
[1745231633811,7.31876844,139.35,139.3,26.0]
[1745231635714,7.17514529,139.37,139.3,31.74299576]
[1745231636416,0.14216157,139.36,139.3,31.74299576]
[1745231637017,7.17617509,139.35,139.3,31.74299576]
[1745231637326,7.31802647,139.36,139.3,31.74299576]
[1745231637529,99.51264886,139.38,139.3,31.74299576]
[1745231637530,80.863,139.38,139.3,31.74299576]
[1745231637827,0.063,139.38,139.31,22.5102]
[1745231638605,0.063,139.38,139.34,26.0]
[1745231639029,0.063,139.38,139.34,31.74099303]
[1745231640316,0.063,139.38,139.33,1.5923]
[1745231640508,0.063,139.38,139.35,26.0]
[1745231641113,0.14216157,139.37,139.34,26.0]
[1745231641633,7.2376305,139.38,139.31,28.2526867]
[1745231641826,0.14216157,139.37,139.32,26.0]
[1745231642522,7.17566016,139.36,139.32,26.0]
[1745231646533,7.17566016,139.36,139.3,26.0]
[1745231646719,0.14216157,139.35,139.3,26.0]
[1745231647731,7.17669011,139.34,139.32,26.0]
[1745231648147,7.17669011,139.34,139.29,1.5923]
[1745231648317,7.17669011,139.34,139.28,5.77371639]
[1745231648721,7.17669011,139.34,139.29,26.0]
[1745231652721,7.17669011,139.34,139.3,26.0]
[1745231653851,0.14216157,139.34,139.3,26.0]
[1745231655039,7.31921301,139.34,139.3,26.0]
[1745231655953,7.31833666,139.35,139.3,26.0]
[1745231663537,7.17617509,139.35,139.3,31.74282014]
[1745231663855,0.14216157,139.36,139.3,31.74282014]
[1745231664740,7.17617509,139.35,139.3,31.74282014]
[1745231667734,7.31805588,139.36,139.3,33.24722014]
[1745231674141,7.17520816,139.37,139.3,33.24722014]
[1745231678246,7.3181259,139.36,139.3,33.24722014]
[1745231678759,7.17596433,139.36,139.3,33.24722014]
[1745231680677,7.17647559,139.35,139.3,33.24722014]
[1745231681468,7.31792738,139.36,139.3,33.24722014]
[1745231681935,7.31792738,139.36,139.3,31.74282014]
[1745231685268,7.31885168,139.34,139.3,26.0]
[1745231685848,7.17669011,139.34,139.3,26.0]
[1745231690177,7.17669011,139.34,139.31,26.0]
[1745231690352,7.17669011,139.34,139.29,26.0]
[1745231692870,7.17669011,139.34,139.29,31.74336182]
[1745231693258,7.17669011,139.34,139.29,32.24750162]
[1745231695578,7.17617509,139.35,139.29,32.24750162]
[1745231700176,0.14216157,139.35,139.29,32.24750162]
[1745231702064,7.31841404,139.35,139.29,32.24750162]
[1745231702382,7.17625247,139.35,139.29,32.24750162]
[1745231703191,7.31782173,139.36,139.29,32.24750162]
[1745231703785,0.14216157,139.34,139.31,26.0]
[1745231705983,7.17720519,139.33,139.29,32.24748049]
[1745231706481,7.17566016,139.36,139.29,32.24748049]
[1745231708191,0.14216157,139.36,139.29,32.24748049]
[1745231709189,7.17535887,139.37,139.29,32.24748049]
[1745231709482,0.063,139.38,139.32,26.0]
[1745231710158,0.063,139.38,139.33,1.5762]
[1745231711386,0.063,139.38,139.34,5.74135208]
[1745231711587,0.063,139.38,139.37,26.0]
[1745231711977,0.063,139.4,139.37,26.0]
[1745231713368,0.063,139.4,139.37,31.74000641]
[1745231717413,0.063,139.4,139.37,44.29651067]
[1745231720189,0.063,139.41,139.37,44.29651067]
[1745231720391,0.063,139.43,139.38,1.5762]
[1745231720599,0.063,139.43,139.42,26.0]
[1745231728896,0.063,139.43,139.42,32.45531487]
[1745231734312,0.063,139.43,139.42,26.0]
[1745231736600,0.063,139.43,139.42,32.45531487]
[1745231737614,0.063,139.43,139.42,26.0]
[1745231739718,0.063,139.43,139.42,32.45531487]
[1745231740123,0.063,139.43,139.42,26.0]
[1745231740291,0.063,139.43,139.42,32.45531487]
[1745231747746,0.063,139.44,139.42,32.45531487]
[1745231755841,0.063,139.44,139.42,26.0]
[1745231756145,0.063,139.44,139.41,5.75211743]
[1745231756146,0.063,139.44,139.38,6.45716745]
[1745231756850,0.063,139.44,139.39,26.0]
[1745231757345,0.063,139.44,139.37,87.15747794]
[1745231757736,0.063,139.44,139.4,26.0]
[1745231758353,0.20516157,139.44,139.4,26.0]
[1745231759248,0.063,139.44,139.37,89.97048545]
[1745231759546,0.063,139.44,139.4,26.0]
[1745231760347,0.063,139.44,139.42,6.45531487]
[1745231761135,0.063,139.46,139.42,6.45531487]
[1745231761944,0.063,139.46,139.42,103.29360205]
[1745231762136,0.063,139.46,139.45,26.0]
[1745231762335,0.063,139.46,139.45,32.45392613]
[1745231763132,0.063,139.46,139.45,47.81392613]
[1745231763346,0.063,139.46,139.45,54.33042613]
[1745231764658,0.063,139.46,139.45,47.81392613]
[1745231765557,0.063,139.46,139.45,26.0]
[1745231765853,0.063,139.46,139.44,6.45422468]
[1745231767561,0.063,139.46,139.43,32.45471189]
[1745231769138,0.063,139.46,139.43,26.0]
[1745231769339,0.063,139.46,139.42,80.7]
[1745231769559,0.063,139.46,139.41,21.8154551]
[1745231770784,0.063,139.46,139.41,6.4554551]
[1745231774557,1.6011,139.46,139.42,26.0]
[1745231774759,18.79181043,139.45,139.39,15.36]
[1745231775350,18.79181043,139.45,139.39,41.36]
[1745231775862,18.79181043,139.45,139.39,47.81664465]
[1745231776159,0.14216157,139.45,139.39,47.81664465]
[1745231777163,0.14216157,139.45,139.39,32.45664465]
[1745231777759,7.31323573,139.45,139.39,32.45664465]
[1745231778164,7.31323573,139.45,139.39,26.0]
[1745231779651,25.96288459,139.45,139.39,32.45667071]
[1745231781656,0.14216157,139.45,139.39,32.45667071]
[1745231782151,7.31328351,139.45,139.39,32.45667071]
[1745231787381,7.23351484,139.46,139.39,32.45667071]
[1745231787575,0.063,139.46,139.39,48.59843123]
[1745231787872,0.063,139.46,139.42,26.0]
[1745231788453,0.063,139.46,139.43,26.0]
[1745231789580,0.063,139.46,139.44,6.45438898]
[1745231793381,0.063,139.46,139.43,32.45464227]
[1745231794196,0.063,139.46,139.43,26.0]
[1745231796578,7.23351484,139.46,139.43,26.0]
[1745231800770,0.063,139.46,139.43,26.0]
[1745231806673,0.20516157,139.46,139.43,26.0]
[1745231806871,0.20516157,139.46,139.41,26.0]
[1745231808316,0.063,139.46,139.41,26.0]
[1745231808499,0.063,139.46,139.42,5.73805766]
[1745231811984,0.063,139.46,139.42,20.08320182]
[1745231812300,0.063,139.46,139.45,26.0]
[1745231813906,0.063,139.46,139.45,31.73682323]
[1745231814282,0.063,139.46,139.45,112.43682323]
[1745231814804,0.063,139.46,139.45,127.73682323]
[1745231820706,1e-08,139.51,139.49,26.0]
[1745231820915,0.063,139.56,139.51,26.0]
[1745231822187,0.063,139.56,139.52,5.73394495]
[1745231823397,0.063,139.52,139.51,31.73427546]
[1745231824219,0.063,139.52,139.5,5.73459054]
[1745231825909,0.063,139.52,139.5,86.43459054]
[1745231829716,0.063,139.52,139.5,101.45459054]
[1745231837728,0.063,139.56,139.54,26.0]
[1745231837904,0.063,139.59,139.56,26.0]
[1745231839717,0.063,139.59,139.57,5.7318908]
[1745231839915,0.063,139.59,139.57,9.27725745]
[1745231840308,0.063,139.59,139.57,89.97725745]
[1745231843609,0.063,139.59,139.58,18.64964886]
[1745231844736,0.063,139.59,139.58,20.29391043]
[1745231844914,0.063,139.59,139.58,20.15174886]
[1745231845113,0.063,139.59,139.58,20.29391043]
[1745231845608,0.063,139.59,139.58,26.02539058]
[1745231846739,0.063,139.59,139.58,7.23358015]
[1745231846941,0.063,139.59,139.58,5.73148015]
[1745231848017,0.063,139.59,139.58,24.38112901]
[1745231849347,0.063,139.59,139.58,105.08112901]
[1745231850246,0.063,139.59,139.58,86.43148015]
[1745231850851,0.063,139.59,139.58,80.7]
[1745231851042,0.063,139.59,139.55,15.02]
[1745231851254,0.063,139.59,139.55,20.7525841]
[1745231851414,0.063,139.59,139.56,26.0]
[1745231855436,0.063,139.59,139.56,31.73225541]
[1745231855737,0.063,139.59,139.58,26.0]
[1745231857042,0.063,139.59,139.55,15.02]
[1745231857350,0.063,139.59,139.56,26.0]
[1745231862532,0.20516157,139.59,139.56,26.0]
[1745231862838,1.557,139.58,139.54,80.7]
[1745231864039,1.557,139.58,139.53,26.0]
[1745231864237,1.557,139.58,139.54,26.0]
[1745231865165,7.1648635,139.57,139.54,26.0]
[1745231867530,8.72148358,139.58,139.54,26.0]
[1745231869354,7.22707694,139.59,139.54,32.44972669]
[1745231869659,0.063,139.59,139.54,32.44972669]
[1745231873351,0.063,139.59,139.54,48.57413546]
[1745231875846,0.063,139.59,139.54,129.27413546]
[1745231880454,0.063,139.59,139.54,135.63393546]
[1745231882268,0.063,139.59,139.55,1.5905]
[1745231882855,0.063,139.59,139.58,26.0]
[1745231884071,0.063,139.59,139.58,32.44791517]
[1745231890561,0.063,139.59,139.58,26.0]
[1745231892455,0.063,139.59,139.56,26.0]
[1745231893092,0.063,139.59,139.57,26.0]
[1745231894679,0.063,139.59,139.57,32.44837624]
[1745231897379,0.063,139.59,139.57,26.0]
[1745231898581,0.063,139.59,139.55,32.44911763]
[1745231901264,0.20516157,139.59,139.55,26.0]
[1745231902980,0.063,139.59,139.55,32.44917203]
[1745231904692,0.063,139.59,139.55,6.44917203]
[1745231905991,0.063,139.59,139.54,6.4497635]
[1745231906690,0.14216157,139.56,139.52,0.03]
[1745231908496,7.3080118,139.56,139.52,0.03]
[1745231909590,0.14216157,139.54,139.52,0.03]
[1745231910581,7.30839961,139.55,139.52,0.03]
[1745231913698,25.22312551,139.55,139.52,0.03]
[1745231913871,0.14216157,139.53,139.52,0.03]
[1745231914980,7.30907907,139.53,139.52,0.03]
[1745231922195,18.64964886,139.54,139.53,17.69092093]
[1745231923994,25.81605275,139.54,139.53,17.69092093]
[1745231924300,25.95821432,139.54,139.53,17.69092093]
[1745231924599,7.16640389,139.54,139.53,17.69092093]
[1745231926398,7.16589036,139.55,139.53,17.69092093]
[1745231930918,17.91223209,139.57,139.53,17.69092093]
[1745231930919,7.1648635,139.57,139.53,17.69092093]
[1745231933415,18.79181043,139.56,139.53,17.69092093]
[1745231935210,18.79181043,139.56,139.53,17.19092093]
[1745231935211,18.79181043,139.54,139.53,17.19092093]
[1745231936712,25.95821432,139.54,139.53,17.19092093]
[1745231944419,7.16640389,139.54,139.53,17.19092093]
[1745231944823,114.99820533,139.59,139.53,17.19092093]
[1745231945124,7.16435019,139.58,139.53,17.19092093]
[1745231946920,18.79181043,139.57,139.53,17.19092093]
[1745231948732,18.79181043,139.55,139.53,17.19092093]
[1745231949730,7.16640389,139.54,139.53,17.19092093]
[1745231950309,25.95821432,139.54,139.53,17.19092093]
[1745231950613,51.95821432,139.54,139.53,17.19092093]
[1745231955243,18.79181043,139.53,139.5,0.03]
[1745231957243,7.16743119,139.52,139.5,0.03]
[1745231967865,7.31010652,139.51,139.5,0.03]
[1745231970452,7.16743119,139.52,139.5,0.03]
[1745231973242,25.95896596,139.53,139.5,0.03]
[1745231974555,7.16715553,139.53,139.5,0.03]
[1745231978037,7.16649389,139.54,139.5,0.03]
[1745231978362,7.16649389,139.54,139.5,1.6894]
[1745231979473,7.16537689,139.56,139.5,8.14093281]
[1745231981748,18.79181043,139.55,139.5,1.6894]
[1745231983373,18.79181043,139.53,139.5,1.6894]
[1745231983670,18.79181043,139.53,139.5,0.03]
[1745231985175,7.16640389,139.54,139.5,0.03]
[1745232000166,7.16640389,139.54,139.51,26.0]
[1745232002185,17.91344849,139.56,139.51,26.0]
[1745232002980,25.95718732,139.56,139.51,26.0]
[1745232004364,43.87062956,139.56,139.51,26.0]
[1745232009384,45.38992956,139.56,139.5,0.03]
[1745232009976,117.36681405,139.56,139.5,0.03]
[1745232010187,118.36681405,139.56,139.5,0.03]
[1745232011180,125.12481654,139.56,139.5,0.03]
[1745232011383,18.79181043,139.54,139.5,0.03]
[1745232011685,25.95975538,139.51,139.5,0.03]
[1745232013462,18.79181043,139.5,139.49,0.03]
[1745232013661,25.96026921,139.5,139.49,0.03]
[1745232019780,25.96026921,139.5,139.48,0.03]
[1745232020672,18.79181043,139.49,139.48,0.03]
[1745232020974,25.96078311,139.49,139.48,0.03]
[1745232021173,18.79181043,139.48,139.47,0.03]
[1745232021573,0.14216157,139.48,139.47,0.03]
[1745232023068,7.31164823,139.48,139.47,0.03]
[1745232024790,47.45129709,139.48,139.47,1e-08]
[1745232028997,25.96129709,139.48,139.47,1e-08]
[1745232033090,51.96129709,139.48,139.47,1e-08]
[1745232035803,73.45129709,139.48,139.47,1e-08]
[1745232036507,47.45129709,139.48,139.47,1e-08]
[1745232037997,25.96129709,139.48,139.47,1e-08]
[1745232038805,25.81913552,139.48,139.47,1e-08]
[1745232039103,7.16948666,139.48,139.47,1e-08]
[1745232040094,7.16897268,139.49,139.47,1e-08]
[1745232043104,7.31164823,139.48,139.47,1e-08]
[1745232052316,25.96129709,139.48,139.47,1e-08]
[1745232057419,47.46129709,139.48,139.47,1e-08]
[1745232057626,48.46129709,139.48,139.47,1e-08]
[1745232057922,47.46129709,139.48,139.47,1e-08]
[1745232058534,48.46129709,139.48,139.47,1e-08]
[1745232058704,47.46129709,139.48,139.47,1e-08]
[1745232060401,48.46129709,139.48,139.47,1e-08]
[1745232061599,74.46129709,139.48,139.47,1e-08]
[1745232062502,0.14216157,139.43,139.42,0.03]
[1745232064027,0.14216157,139.43,139.41,0.03]
[1745232064823,7.31473365,139.42,139.41,0.03]
[1745232065021,25.96438251,139.42,139.41,0.03]
[1745232067812,18.79181043,139.42,139.41,1.6679]
[1745232068013,25.82222094,139.42,139.41,1.6679]
[1745232068216,25.96438251,139.42,139.41,1.6679]
[1745232069720,25.96438251,139.42,139.41,0.03]
[1745232071428,25.96438251,139.42,139.41,1e-08]
[1745232075627,47.46438251,139.42,139.41,1e-08]
[1745232077426,25.96438251,139.42,139.41,1e-08]
[1745232096934,18.79181043,139.42,139.41,1e-08]
[1745232097128,25.96438251,139.42,139.41,1e-08]
[1745232112654,25.82222094,139.42,139.41,1e-08]
[1745232113263,25.96438251,139.42,139.41,1e-08]
[1745232113655,124.72520635,139.47,139.41,1e-08]
[1745232113849,18.64964886,139.46,139.41,1e-08]
[1745232114474,0.14216157,139.45,139.41,1e-08]
[1745232115778,7.17154331,139.44,139.41,1e-08]
[1745232120192,0.14216157,139.45,139.41,1e-08]
[1745232120484,0.14216157,139.45,139.41,6.50280001]
[1745232121170,7.31221044,139.47,139.41,6.50280001]
[1745232121567,7.17004887,139.47,139.41,6.50280001]
[1745232122082,0.14216157,139.47,139.42,26.0]
[1745232122381,0.063,139.48,139.43,1.6441]
[1745232123686,0.063,139.48,139.44,7.17154331]
[1745232128184,0.063,139.48,139.46,6.2853]
[1745232129688,0.063,139.48,139.46,13.45543411]
[1745232133872,0.063,139.48,139.45,26.0]
[1745232134095,0.063,139.48,139.43,27.6441]
[1745232135296,0.063,139.48,139.41,1e-08]
[1745232135695,18.79181043,139.46,139.41,1e-08]
[1745232135880,18.79181043,139.44,139.41,1e-08]
[1745232137995,18.79181043,139.42,139.41,1e-08]
[1745232141004,7.31473365,139.42,139.41,1e-08]
[1745232143610,0.14216157,139.42,139.41,1e-08]
[1745232143897,7.17221043,139.43,139.41,1e-08]
[1745232145700,0.14216157,139.43,139.41,1e-08]
[1745232147503,18.64964886,139.44,139.41,1e-08]
[1745232148202,0.14216157,139.46,139.41,27.53400001]
[1745232148412,18.64964886,139.46,139.41,27.53400001]
[1745232149487,18.64964886,139.46,139.41,34.70688247]
[1745232153635,0.14216157,139.45,139.41,27.53400001]
[1745232154212,0.14216157,139.45,139.41,26.00000001]
[1745232156322,7.17108816,139.45,139.41,26.00000001]
[1745232157405,0.14216157,139.44,139.41,1e-08]
[1745232157613,18.79181043,139.43,139.41,1e-08]
[1745232159423,0.14216157,139.43,139.41,1e-08]
[1745232159722,18.79181043,139.43,139.41,1e-08]
[1745232161699,0.14216157,139.43,139.41,1e-08]
[1745232168242,18.79181043,139.45,139.41,1e-08]
[1745232168912,7.31328918,139.45,139.41,1e-08]
[1745232175444,7.17112761,139.45,139.41,1e-08]
[1745232175646,17.98775408,139.48,139.41,1e-08]
[1745232175647,18.71264886,139.48,139.42,26.0]
[1745232176167,0.14216157,139.47,139.41,1e-08]
[1745232177033,18.71264886,139.48,139.41,7.17308658]
[1745232177539,0.14216157,139.47,139.41,7.17308658]
[1745232179252,0.14216157,139.47,139.41,26.00000001]
[1745232179550,18.64964886,139.46,139.41,1e-08]
[1745232180138,18.64964886,139.46,139.41,26.00000001]
[1745232181058,0.14216157,139.47,139.41,33.17301779]
[1745232181361,0.14216157,139.47,139.41,26.00000001]
[1745232181362,0.14216157,139.46,139.41,26.00000001]
[1745232181731,0.14216157,139.46,139.41,33.1729683]
[1745232183459,18.79181043,139.47,139.41,33.1729683]
[1745232186253,0.14216157,139.47,139.41,33.1729683]
[1745232194550,7.31223133,139.47,139.41,26.00000001]
[1745232195059,18.64964886,139.46,139.41,26.00000001]
[1745232197246,7.17074512,139.46,139.41,26.00000001]
[1745232217754,18.85481043,139.48,139.41,33.17290519]
[1745232217959,18.71264886,139.48,139.41,33.17290519]
[1745232218261,0.14216157,139.47,139.41,33.17290519]
[1745232224088,7.31242389,139.47,139.41,1e-08]
[1745232226568,7.17053791,139.46,139.41,1e-08]
[1745232228884,18.79181043,139.47,139.41,1e-08]
[1745232231384,18.85481043,139.48,139.41,1e-08]
[1745232231592,18.85481043,139.48,139.41,6.02750001]
[1745232231794,0.20516157,139.48,139.41,32.02750001]
[1745232232003,0.063,139.48,139.42,1.5066]
[1745232232600,0.20516157,139.48,139.42,1.5066]
[1745232233795,0.20516157,139.48,139.43,7.17205766]
[1745232239099,0.063,139.48,139.44,26.0]
[1745232239602,0.063,139.48,139.45,6.0275]
[1745232240404,0.063,139.48,139.46,7.17051484]
[1745232254193,0.063,139.48,139.45,7.17081384]
[1745232268131,0.063,139.48,139.45,26.0]
[1745232271427,0.063,139.48,139.45,7.17082955]
[1745232274245,0.063,139.48,139.47,26.0]
[1745232276037,0.063,139.48,139.47,33.17000071]
[1745232293546,0.063,139.48,139.46,7.17038285]
[1745232293749,0.063,139.48,139.44,7.17154331]
[1745232293935,0.063,139.48,139.45,26.0]
[1745232294354,0.063,139.48,139.44,7.17154331]
[1745232294655,0.063,139.48,139.45,33.17074914]
[1745232294869,0.063,139.48,139.46,26.0]
[1745232300868,0.063,139.48,139.45,7.17087649]
[1745232309173,0.063,139.48,139.43,7.17196683]
[1745232309691,0.063,139.48,139.42,7.17237444]
[1745232309976,0.063,139.48,139.43,26.0]
[1745232312481,0.063,139.48,139.42,7.17237444]
[1745232317866,0.20516157,139.48,139.42,7.17237444]
[1745232318069,0.063,139.48,139.42,25.10380465]
[1745232318392,0.20516157,139.48,139.42,25.10380465]
[1745232318581,0.063,139.48,139.42,25.10380465]
[1745232345121,0.063,139.48,139.45,26.0]
[1745232345293,0.063,139.48,139.46,26.0]
[1745232345502,0.063,139.5,139.47,8.1354]
[1745232346112,0.063,139.5,139.48,7.16948666]
[1745232367935,0.063,139.52,139.49,26.0]
[1745232368128,0.063,139.54,139.49,26.0]
[1745232368448,0.063,139.54,139.49,106.7]
[1745232369851,0.063,139.54,139.5,25.08960573]
[1745232371848,0.063,139.54,139.5,7.16845878]
[1745232373634,0.063,139.54,139.48,25.09297379]
[1745232373833,0.14216157,139.53,139.48,7.16948666]
[1745232374731,0.14216157,139.53,139.51,26.0]
[1745232375460,0.14216157,139.53,139.5,33.16834622]
[1745232375964,0.14216157,139.53,139.46,17.92614071]